Cogmind - Beta 15 @@@ ROGUE MODE // 2025.07.02 @ 07:05:43 Player: beans Result: Destroyed by S-10 Pest with Light Assault Rifle Performance ------------- Evolutions (0) 0 Regions Visited (1) 200 Robots Destroyed (17) 85 Value Destroyed (366) 366 Prototype IDs (0) 0 Alien Tech Used (0) 0 Bonus (0) 0 TOTAL SCORE: 651 Bonus ------- None Cogmind --------- Core Integrity 0/250 Matter 300/300 Energy 250/250 System Corruption 0% Temperature Cool (0) Movement Core (150) Ox2 Location -10/Materials Parts ------- > --- POWER (1) -------- Ion Engine > --- PROPULSION (2) --- (None) > --- UTILITY (2) ------ Heat Sink > --- WEAPON (2) ------- Hammer > --- INVENTORY (5) ---- Medium Laser Small Laser Assault Rifle Light Assault Rifle Datajack Peak State ------------ > --- POWER ------------ Light Ion Engine > --- PROPULSION ------- Light Treads Light Treads > --- UTILITY ---------- Heat Sink > --- WEAPON ----------- Medium Laser Assault Rifle > --- INVENTORY -------- Light Assault Rifle Datajack [Rating: 6] Favorites ----------- Power Light Ion Engine Engine Light Ion Engine Propulsion Light Treads Treads Light Treads Flight Unit Flight Unit Utility Heat Sink Device Heat Sink Weapon Medium Laser Energy Gun Medium Laser Ballistic Gun Assault Rifle Impact Weapon Hammer Build | -11 -10 ------- Run | Yrd Mat Slots Evolved . | . . Power . | . . Propulsion . | . . Utility . | . . Weapon . | . . Parts Attached 12 | 6 6 Power 2 | 1 1 Engine 2 | 1 1 Core . | . . Reactor . | . . Propulsion 4 | 2 2 Treads 2 | 2 . Leg . | . . Wheel . | . . Hover . | . . Flight 2 | . 2 Utility 1 | . 1 Device 1 | . 1 Storage . | . . Processor . | . . Hackware . | . . Protection . | . . Artifact . | . . Weapon 5 | 3 2 Energy Gun 2 | 1 1 Energy Cannon . | . . Ballistic Gun 2 | 2 . Ballistic Cannon . | . . Launcher . | . . Special Weapon . | . . Impact Weapon 1 | . 1 Slashing Weapon . | . . Piercing Weapon . | . . Special Melee Weapon . | . . Unidentified Prototypes . | . . Parts Lost 4 | . 4 Power 1 | . 1 Propulsion 3 | . 3 Utility . | . . Weapon . | . . Highest Loss Streak 2 | . 2 To Critical Strikes . | . . Average Backups 2 | 1 2 Power . | . . Propulsion . | . . Utility . | . . Weapon 1 | . 1 Tool/Special . | . . Unused Backups 1 | . 1 Power . | . . Propulsion . | . . Utility . | . . Weapon . | . . Tool/Special 1 | . 1 Average Slot Usage (%) 67 | . 67 Engine 10 | . 10 Treads 18 | . 18 Flight 3 | . 3 Device 7 | . 7 Energy Gun 18 | . 18 Ballistic Gun 6 | . 6 Impact Weapon 1 | . 1 Peak Build Rating 6 | 5 6 Average Rating 4 | 4 4 On Entrance 2 | . 5 Naked Turns . | . . Heaviest Build 8 | 7 8 Greatest Support 40 | 40 40 Greatest Overweight (x) 2 | . 2 Average Overweight (x) . | . . Largest Inventory Capacity 5 | 5 5 Average Capacity 5 | 5 5 Most Carried 5 | 4 5 Average Carried 2 | . 2 Final Capacity 5 | 5 5 Final Carried 5 | 1 5 Class Distribution -------------------- 100% | Mutant Dominant Class ---------------- Mutant | -10/Materials Resources | -11 -10 ----------- Run | Yrd Mat Matter Collected 453 | 198 255 Remotely . | . . Salvage Created 570 | 25 545 Parts 25 | 3 22 Haulers Intercepted . | . . Recyclers Shooed 2 | . 2 Parts Field Recycled . | . . Retrieved Matter . | . . Parts Self-Destructed . | . . Prevented . | . . Kills | -11 -10 ------- Run | Yrd Mat Combat Hostiles Destroyed 10 | . 10 Melee 1 | . 1 Guns 9 | . 9 Classes Destroyed 7 | 1 6 Worker 3 | 1 2 Builder 1 | . 1 Tunneler 1 | . 1 Recycler 1 | . 1 Watcher 1 | . 1 Swarmer 1 | . 1 Grunt 9 | . 9 Best Kill Streak 4 | 1 4 Combat Bots Only 2 | . 2 Max Kills in Single Turn 1 | 1 1 Gunslinging . | . . Exploded . | . . Melee 1 | . 1 Uniques/NPCs Destroyed . | . . Combat | -11 -10 -------- Run | Yrd Mat Hostile Shots Fired 102 | . 102 Missed 27 | . 27 Hits 75 | . 75 Projectile 75 | . 75 Damage Taken 799 | . 799 Core 251 | . 251 Absorbed by Shields . | . . Core Remaining (%) 100 | 100 . Volleys Fired 72 | 1 71 Largest 2 | 2 2 Hottest 90 | 70 90 Shots Fired 143 | 2 141 Gun 143 | 2 141 Cannon . | . . Launcher . | . . Special . | . . Kinetic 46 | 1 45 Thermal 97 | 1 96 Explosive . | . . Electromagnetic . | . . Robot Hit Streak 11 | 1 11 Robot Miss Streak 3 | . 3 Penetration Max . | . . Secondary Targets 1 | . 1 Max Gunslinging Chain 1 | . 1 Shots Hit Robots 78 | 1 77 Core Hits 27 | 1 26 Critical Kills 1 | . 1 Critical Parts Destroyed . | . . Critical Strikes 5 | . 5 Burn 4 | . 4 Smash 1 | . 1 Melee Attacks 11 | . 11 Impact 11 | . 11 Slashing . | . . Piercing . | . . Sneak Attacks 2 | . 2 Combat Hostiles . | . . Follow-up Attacks . | . . Damage Inflicted 1172 | 13 1159 Guns 877 | 13 864 Cannons . | . . Explosions . | . . Melee 295 | . 295 Ramming . | . . Kinetic 316 | . 316 Thermal 561 | 13 548 Explosive . | . . Electromagnetic . | . . Impact 295 | . 295 Slashing . | . . Piercing . | . . Highest Corruption . | . . Average Corruption . | . . Corruption Purged . | . . Corruption Blocked . | . . Overload Shots . | . . Overflow Damage 138 | . 138 Projectiles . | . . Explosions . | . . Melee 138 | . 138 Knockbacks 2 | . 2 Impact 2 | . 2 Kinetic . | . . Secondary . | . . Self-Inflicted Damage . | . . Shots . | . . Rammed . | . . Targets Rammed . | . . Kicked . | . . Crushed . | . . Highest Temperature 273 | 9 273 Average Temperature 86 | 6 87 Received Heat Transfer 369 | . 369 Effects 2 | . 2 Energy Bleed 2 | . 2 Siege Activations . | . . Martial Activations . | . . Shielding Activations . | . . Robots Disrupted . | . . Combat Hostiles . | . . Robots Corrupted 3 | . 3 Combat Hostiles . | . . Parts Fried 5 | . 5 Impact Corruptions 5 | . 5 Robots Melted . | . . Combat Hostiles . | . . Parts Melted 2 | . 2 Heat Transferred 1902 | 37 1865 Parts Sabotaged . | . . Parts Stolen . | . . Parts Stripped . | . . Power Chain Reactions . | . . Alert | -11 -10 ------- Run | Yrd Mat Maximum Alert Level . | . . Low Security (%) 100 | 100 100 Level 1 . | . . Level 2 . | . . Level 3 . | . . Level 4 . | . . Level 5 . | . . High Security . | . . Max Security . | . . Peak Influence 90 | 5 90 Initial 3 | . 3 Average 30 | . 34 Influence Increases 358 | 5 353 Destroy 0b10 Robot/C 200 | . 200 Destroy 0b10 Robot/NC 35 | 5 30 Destroy Leader 32 | . 32 Destroy Structure 1 | . 1 Lose Combat Pursuer 90 | . 90 Influence Decreases 356 | . 356 Entered New Map 2 | . 2 Time Decay 317 | . 317 Lost Part 37 | . 37 Squads Dispatched 3 | . 3 Investigation 1 | . 1 Extermination . | . . Reinforcement 2 | . 2 Assault . | . . Garrison . | . . Intercept . | . . Searches Triggered . | . . Construction Impeded . | . . Haulers Reinforced . | . . Active Scanning Responses . | . . Cargo Convoy Interrupts . | . . Stealth | -11 -10 --------- Run | Yrd Mat Distress Signals 4 | . 4 Communications Jammed . | . . Distress Signals . | . . Times Spotted 26 | . 26 Peak Tracking Total 4 | . 4 Tactical Retreats 4 | . 4 Traps | -11 -10 ------- Run | Yrd Mat Traps Triggered 1 | . 1 Indirectly . | . . Trap Hack Attempts . | . . Triggered . | . . Disarmed . | . . Reprogrammed . | . . Reused . | . . Traps Extracted . | . . Installed . | . . Triggered . | . . Machines | -11 -10 ---------- Run | Yrd Mat Machines Disabled . | . . Max in Single Turn . | . . Machines Repaired . | . . Machines Dismantled . | . . Machines Sabotaged . | . . Overloaded Fab Kills . | . . Hacking | -11 -10 --------- Run | Yrd Mat Machines Accessed . | . . Terminals . | . . Fabricators . | . . Repair Stations . | . . Recycling Units . | . . Scanalyzers . | . . Garrison Access . | . . Total Hacks . | . . Successful . | . . Failed . | . . Catastrophic . | . . Database Lockouts . | . . Manual . | . . Terminals . | . . Fabricators . | . . Repair Stations . | . . Recycling Units . | . . Scanalyzers . | . . Garrison Access . | . . Terminal Hacks . | . . Fabricator Hacks . | . . Repair Station Hacks . | . . Recycling Unit Hacks . | . . Scanalyzer . | . . Garrison Access Hacks . | . . Unauthorized Hacks . | . . Terminals . | . . Fabricators . | . . Repair Stations . | . . Recycling Units . | . . Scanalyzers . | . . Garrison Access . | . . Data Cores Recovered . | . . Used . | . . Hacking Detections . | . . Full Trace Events . | . . Feedback Events . | . . Feedback Blocked . | . . Robot Schematics Acquired . | . . Robots Built . | . . Authchips . | . . Time . | . . Total Robot Build Rating . | . . Part Schematics Acquired . | . . Parts Built . | . . Authchips . | . . Time . | . . Total Part Build Rating . | . . Parts Repaired . | . . Time . | . . Parts Recycled . | . . Recycled Matter . | . . Retrieved Matter . | . . Retrieved Components . | . . Parts Scanalyzed . | . . Part Schematics Acquired . | . . Parts Damaged . | . . Bothacking | -11 -10 ------------ Run | Yrd Mat Used RIF Installer . | . . Robots Hacked . | . . Non-combat . | . . Combat . | . . Robot Hacks Applied . | . . Relay Couplers Released . | . . Fabnet Peak Effective % . | . . Robots Rewired . | . . Allies Hacked . | . . Hacks Repelled . | . . Allies | -11 -10 -------- Run | Yrd Mat Total Allies . | . . Largest Group . | . . Highest-Rated Group . | . . Highest-Rated Ally . | . . Total Orders . | . . Ally Attacks . | . . Total Damage . | . . Kills . | . . Allies Corrupted . | . . Allies Melted . | . . Intel | -11 -10 ------- Run | Yrd Mat Active Infowar (turns) . | . . Robot Analysis Total . | . . Derelict Logs Recovered . | . . Drone Launches . | . . Drone Recoveries . | . . Exploration | -11 -10 ------------- Run | Yrd Mat Turns Passed 893 | 113 780 Spaces Moved 477 | 70 407 Core 21 | 12 9 Treads 322 | 58 264 Legs . | . . Wheels . | . . Hover . | . . Flight 134 | . 134 Fastest Speed 37 | 50 37 Average Speed 121 | 141 118 Slowest Speed 160 | 160 160 Overloaded Moves . | . . Propulsion Burnouts . | . . Robots Hopped . | . . Potential Cave-ins . | . . Cave-ins Triggered . | . . Exploration Rate (%) 28 | 6 51 Regions Visited 1 Branch Regions . Pre-discovered Areas . | . . Known Exits Taken . | . . Unknown Exits Taken 1 | 1 . Scrap Searched . | . . Spaces Dug . | . . Terrain Destroyed . | . . Melee . | . . Projectile . | . . AOE . | . . Terrain Rammed . | . . Walls Destroyed . | . . Machines Disabled . | . . Actions | -11 -10 --------- Run | Yrd Mat Total 626 | 82 544 Wait 41 | . 41 Move 476 | 69 407 Hop . | . . Pick Up 12 | 6 6 Fast Attach 1 | . 1 Attach 8 | 5 3 Detach 1 | . 1 Swap 3 | 1 2 Drop 1 | . 1 Fire 72 | 1 71 Melee 11 | . 11 Ram . | . . Kick . | . . Crush . | . . Escape Stasis . | . . Rewire . | . . Trap . | . . Miscellaneous . | . . Route ------- -11/Scrapyard -10/Materials (discovered 3 exits: [*Mat x2] / [*Min]) History --------- Turn | Location | Event 22 | -11/Scrapyard | Discovered new exit (range 15) 114 | -11/Scrapyard | Entered Materials 305 | -10/Materials | Build established: Mutant 314 | -10/Materials | Core integrity fell below 50% 414 | -10/Materials | Discovered new exit (range 4) 788 | -10/Materials | Discovered new exit (range 9) 853 | -10/Materials | Discovered new exit (range 5) 874 | -10/Materials | Core integrity fell below 20% 894 | -10/Materials | Destroyed by S-10 Pest with Light Assault Rifle Last Messages --------------- Sneak attack on K-01 Serf. Destroyed Sml. Matter Pod. Destroyed Lgt. Ion Engine. K-01 Serf system corrupted by crushing effect. K-01 Serf knocked back. K-01 Serf system terminally corrupted. Wheel fried. Destroyed Com. Wheel. R-06 Scavenger system corrupted by crushing effect. R-06 Scavenger system terminally corrupted. Tractor Beam fried. Lgt. Ion Engine fried. S-10 Pest knocked back. Flight Unit destroyed. S-10 Pest suffers critical hit (Smash). S-10 Pest destroyed. Flight Unit destroyed. K-01 Serf cleans the Terminal. Map ----- +----------------------------------------------------+ | | | | | | | | | | | | | | | | | | | | | | | ?????????????????????????????????????????????? | | ?????????????????????????????????????????????? | | ?????????????????????????????????????????????? | | ?????????????????????????????????????????????? | | ?????????????????????????????????????????????? | | ?????????????????????????????????????????????? | | ?????????????????????????????????????????????? | | ?????????????????????????????????????????????? | | ????????????????????#############????????????? | | ????????????????????# #####????????? | | ????????????????????# # #????????? | | ??????????"?????????# # < #????????? | | ???????# """ ?????# # #????????? | | ???????+ k ## %! + ####+###?? | | ???????# %s@ % # ### | | ???????# #s #% | | ?????????###+#####+############## ### | | ????????????????????????????????### ###### #?? | | ??????????????????????????????????# #????# #?? | | ??????????????????????????????????# #????#+#?? | | ??????????????????????????????????# #????????? | | ??????????????????????????????????# #????????? | | ??????????????????????????????????# #????????? | | ??????????????????????????????????# #????????? | | ??????????????????????????????????? ?????????? | | ??????????????????????????????????? ?????????? | | ??????????????????????????????????? ?????????? | | ??????????????????????????????????? ?????????? | | ??????????????????????????????????? ?????????? | | ??????????????????????????????????? ?????????? | | ??????????????????????????????????? ?????????? | | ?????????????????????????????????????????????? | | ?????????????????????????????????????????????? | | ?????????????????????????????????????????????? | | ?????????????????????????????????????????????? | | ?????????????????????????????????????????????? | | ?????????????????????????????????????????????? | | ?????????????????????????????????????????????? | | ?????????????????????????????????????????????? | +----------------------------------------------------+ Best States ------------- Heat Dissipation 35 Energy Generation 10 Energy Capacity 250 Matter Stores 300 Matter Capacity 300 Sight Range 16 Terrain Scan Density 10 Evasion (%) 62 Recoil Reduction 2 Item Schematics ----------------- None Robot Schematics ------------------ None Fabricated ------------ Nothing Repaired ---------- Nothing Alien Tech Used ----------------- None Achievements -------------- None Challenges ------------ None Game ------ Seed DeliveryPiercingMachine Manual? 0 Play Time 00:06:56 Cumulative 33.4 hours Start 2025.07.02 @ 07:00:15 End 2025.07.02 @ 07:05:43 Sessions 1 Manual Loads 0 Difficulty Rogue Special Mode None Game No. 163 Rogue 163 Adventurer 0 Explorer 0 Win Type - Total 0 Types 0/0/0/0/0/0/0/0/0/0 Lore% 20 Gallery% 22 Achievement% 19 Wizard Run 0 Options --------- Layout 2 ASCII 0 Keyboard 0 Movement Mouse Keybinds 0 Fullscreen 1 Font 24/Smallcaps Map View 50x44 Zoom Use 0% Tactical HUD 0 Map Filters NONE Filters NONE Steam 1 RUN: 6280d6ab-51b4-412c-ad1b-a84e37ddb326